[Event "Early-Titled-Tuesday-Blitz-March-12-2024"]
[Site "Chess.com"]
[Date "2024.03.12"]
[Round "9"]
[White "geminithegreat"]
[Black "willcab71"]
[Result "0-1"]
[WhiteElo "2197"]
[BlackElo "2140"]
[TimeControl "180+1"]
[EndTime "9:42:55 PDT"]
[Termination "willcab71 won on time"]

1. d4 {[%clk 0:03:00.8]} 1... Nf6 {[%clk 0:02:58.4]} 2. Bf4 {[%clk 0:03:00.9]}
2... g6 {[%clk 0:02:59.3]} 3. e3 {[%clk 0:03:01.1]} 3... Bg7 {[%clk 0:02:59.9]}
4. Nf3 {[%clk 0:02:59.9]} 4... O-O {[%clk 0:03:00.8]} 5. Be2 {[%clk 0:03:00.4]}
5... d6 {[%clk 0:03:01.5]} 6. O-O {[%clk 0:03:01]} 6... Nbd7 {[%clk 0:03:02.3]}
7. h3 {[%clk 0:03:00.9]} 7... b6 {[%clk 0:03:02.8]} 8. Bh2 {[%clk 0:03:00.2]}
8... Bb7 {[%clk 0:03:03.3]} 9. a4 {[%clk 0:02:59.4]} 9... a6 {[%clk 0:03:02.4]}
10. c4 {[%clk 0:02:58.9]} 10... Ne4 {[%clk 0:03:02.7]} 11. Nc3 {[%clk 0:02:57]}
11... Nxc3 {[%clk 0:03:00.9]} 12. bxc3 {[%clk 0:02:57.9]} 12... a5 {[%clk
0:02:58]} 13. Qc2 {[%clk 0:02:41]} 13... Nf6 {[%clk 0:02:57.4]} 14. Bd3 {[%clk
0:02:39.2]} 14... Ba6 {[%clk 0:02:55.8]} 15. e4 {[%clk 0:02:35.6]} 15... Nd7
{[%clk 0:02:52.2]} 16. Rfd1 {[%clk 0:02:23]} 16... e5 {[%clk 0:02:46.4]} 17.
dxe5 {[%clk 0:01:59.2]} 17... dxe5 {[%clk 0:02:47.3]} 18. c5 {[%clk 0:01:57.6]}
18... Qe7 {[%clk 0:02:36.1]} 19. c6 {[%clk 0:01:45.3]} 19... Bxd3 {[%clk
0:02:32.9]} 20. Qxd3 {[%clk 0:01:38.6]} 20... Nc5 {[%clk 0:02:33]} 21. Qc4
{[%clk 0:01:33]} 21... Rad8 {[%clk 0:02:17.5]} 22. Rd5 {[%clk 0:01:31.7]} 22...
Rxd5 {[%clk 0:01:52.5]} 23. exd5 {[%clk 0:01:30.4]} 23... Rd8 {[%clk 0:01:52.2]}
24. Re1 {[%clk 0:01:24.7]} 24... e4 {[%clk 0:01:08.2]} 25. Nd4 {[%clk
0:00:56.7]} 25... Be5 {[%clk 0:01:02.5]} 26. f4 {[%clk 0:00:36.2]} 26... Bd6
{[%clk 0:00:52.5]} 27. Nb5 {[%clk 0:00:31.4]} 27... Qf6 {[%clk 0:00:51.6]} 28.
g3 {[%clk 0:00:10.1]} 28... Re8 {[%clk 0:00:49.4]} 29. Kg2 {[%clk 0:00:08.4]}
29... g5 {[%clk 0:00:31.4]} 30. Nxd6 {[%clk 0:00:07.6]} 30... cxd6 {[%clk
0:00:19.3]} 31. fxg5 {[%clk 0:00:04]} 31... Qf3+ {[%clk 0:00:18.9]} 32. Kg1
{[%clk 0:00:03.5]} 32... Nd3 {[%clk 0:00:18.5]} 33. Rf1 {[%clk 0:00:02.8]} 33...
Qe3+ {[%clk 0:00:17.6]} 34. Kg2 {[%clk 0:00:03]} 34... Qe2+ {[%clk 0:00:12.4]}
35. Kg1 {[%clk 0:00:01.3]} 35... Ne5 {[%clk 0:00:12.3]} 0-1

[Event "Early-Titled-Tuesday-Blitz-March-12-2024"]
[Site "Chess.com"]
[Date "2024.03.12"]
[Round "9"]
[White "GMSrinath"]
[Black "Sam_ChessMood"]
[Result "1-0"]
[WhiteElo "2812"]
[BlackElo "2952"]
[TimeControl "180+1"]
[EndTime "9:43:01 PDT"]
[Termination "GMSrinath won on time"]

1. Nf3 {[%clk 0:03:00.9]} 1... d5 {[%clk 0:02:59.8]} 2. e3 {[%clk 0:03:00.8]}
2... c5 {[%clk 0:02:57.2]} 3. b3 {[%clk 0:02:59.5]} 3... Nc6 {[%clk 0:02:54.9]}
4. Bb2 {[%clk 0:03:00.1]} 4... Nf6 {[%clk 0:02:52.2]} 5. d4 {[%clk 0:03:00.4]}
5... Bg4 {[%clk 0:02:49.7]} 6. dxc5 {[%clk 0:02:59.5]} 6... e6 {[%clk
0:02:49.4]} 7. Nbd2 {[%clk 0:02:58.9]} 7... Bxc5 {[%clk 0:02:48.9]} 8. Be2
{[%clk 0:02:59.6]} 8... O-O {[%clk 0:02:48.8]} 9. O-O {[%clk 0:03:00.3]} 9...
Qe7 {[%clk 0:02:49.1]} 10. c4 {[%clk 0:03:00.8]} 10... Rfd8 {[%clk 0:02:49.1]}
11. cxd5 {[%clk 0:03:01.3]} 11... Nxd5 {[%clk 0:02:43.6]} 12. Rc1 {[%clk
0:02:57]} 12... Rac8 {[%clk 0:02:36.8]} 13. Qc2 {[%clk 0:02:51.5]} 13... Ncb4
{[%clk 0:02:21.3]} 14. Qb1 {[%clk 0:02:39]} 14... Bf5 {[%clk 0:02:21]} 15. Qa1
{[%clk 0:01:30]} 15... Nc2 {[%clk 0:02:17.8]} 16. Rxc2 {[%clk 0:01:30.4]} 16...
Bxc2 {[%clk 0:02:18.1]} 17. Bxg7 {[%clk 0:01:31.3]} 17... f6 {[%clk 0:02:18.6]}
18. Bh6 {[%clk 0:01:31.5]} 18... Bg6 {[%clk 0:02:08.5]} 19. Bc4 {[%clk
0:01:23.4]} 19... Bb4 {[%clk 0:01:56.1]} 20. e4 {[%clk 0:01:10]} 20... Nb6
{[%clk 0:01:50.9]} 21. e5 {[%clk 0:01:09.8]} 21... Bxd2 {[%clk 0:00:38.1]} 22.
exf6 {[%clk 0:00:48.3]} 22... Qf7 {[%clk 0:00:30.1]} 23. Bxd2 {[%clk 0:00:48]}
23... Nxc4 {[%clk 0:00:24]} 24. bxc4 {[%clk 0:00:48.9]} 24... e5 {[%clk
0:00:13.6]} 25. Bg5 {[%clk 0:00:28.2]} 25... Re8 {[%clk 0:00:08.4]} 26. Nxe5
{[%clk 0:00:28]} 26... Qe6 {[%clk 0:00:08.9]} 27. Re1 {[%clk 0:00:15.1]} 27...
Rxc4 {[%clk 0:00:07.3]} 28. h4 {[%clk 0:00:09]} 28... Bf7 {[%clk 0:00:05.2]} 29.
Re3 {[%clk 0:00:07.8]} 29... Ra4 {[%clk 0:00:02.3]} 30. Rg3 {[%clk 0:00:06.3]}
30... Kh8 {[%clk 0:00:01.7]} 31. Nxf7+ {[%clk 0:00:01.8]} 31... Qxf7 {[%clk
0:00:01.9]} 32. Bh6 {[%clk 0:00:02.7]} 32... Rxa2 {[%clk 0:00:01.5]} 33. Qc3
{[%clk 0:00:02.4]} 33... Ra4 {[%clk 0:00:01.3]} 34. Rg7 {[%clk 0:00:01.9]} 34...
Qe6 {[%clk 0:00:01.1]} 35. f7 {[%clk 0:00:02.2]} 35... Qe1+ {[%clk 0:00:01.3]}
36. Kh2 {[%clk 0:00:02.8]} 1-0

[Event "Early-Titled-Tuesday-Blitz-March-12-2024"]
[Site "Chess.com"]
[Date "2024.03.12"]
[Round "9"]
[White "vovachesss"]
[Black "Kielinkei"]
[Result "1-0"]
[WhiteElo "2794"]
[BlackElo "2581"]
[TimeControl "180+1"]
[EndTime "9:43:01 PDT"]
[Termination "vovachesss won by resignation"]

1. e4 {[%clk 0:03:00.9]} 1... c5 {[%clk 0:03:00.4]} 2. Nf3 {[%clk 0:02:57.6]}
2... e6 {[%clk 0:03:00.9]} 3. g3 {[%clk 0:02:55.9]} 3... d5 {[%clk 0:02:59.9]}
4. exd5 {[%clk 0:02:53.9]} 4... exd5 {[%clk 0:03:00.8]} 5. Bg2 {[%clk
0:02:54.6]} 5... Qe7+ {[%clk 0:02:57.4]} 6. Kf1 {[%clk 0:02:55.1]} 6... Nf6
{[%clk 0:02:55.8]} 7. d4 {[%clk 0:02:54.9]} 7... Nc6 {[%clk 0:02:52]} 8. Nc3
{[%clk 0:02:53.3]} 8... cxd4 {[%clk 0:02:35.3]} 9. Nxd4 {[%clk 0:02:52.7]} 9...
Qc5 {[%clk 0:02:33.6]} 10. Be3 {[%clk 0:02:45.8]} 10... Qc4+ {[%clk 0:02:30.1]}
11. Kg1 {[%clk 0:02:44.4]} 11... Be7 {[%clk 0:02:12.1]} 12. Nb3 {[%clk 0:01:50]}
12... O-O {[%clk 0:02:07.4]} 13. Nxd5 {[%clk 0:01:45.8]} 13... Nxd5 {[%clk
0:02:05.5]} 14. Bxd5 {[%clk 0:01:44.2]} 14... Qb4 {[%clk 0:01:55.6]} 15. a3
{[%clk 0:01:36.7]} 15... Qd6 {[%clk 0:01:50.7]} 16. Qf3 {[%clk 0:01:12.9]} 16...
Ne5 {[%clk 0:01:41.6]} 17. Qe4 {[%clk 0:01:12.2]} 17... Bf5 {[%clk 0:01:35.1]}
18. Qg2 {[%clk 0:00:36]} 18... Bh3 {[%clk 0:01:26.9]} 19. Qe4 {[%clk 0:00:26.8]}
19... Rad8 {[%clk 0:01:19.1]} 20. Rd1 {[%clk 0:00:24.7]} 20... Qf6 {[%clk
0:01:04.7]} 21. f4 {[%clk 0:00:22.8]} 21... Ng4 {[%clk 0:00:59.3]} 22. Bd4
{[%clk 0:00:23]} 22... Qd6 {[%clk 0:00:52.5]} 23. c4 {[%clk 0:00:19.6]} 23...
Rfe8 {[%clk 0:00:40.8]} 24. Qf5 {[%clk 0:00:19.9]} 24... Bf6 {[%clk 0:00:35.9]}
25. Qh5 {[%clk 0:00:17.8]} 25... Re1+ {[%clk 0:00:32]} 26. Rxe1 {[%clk
0:00:16.8]} 26... Bxd4+ {[%clk 0:00:32.3]} 27. Nxd4 {[%clk 0:00:17.4]} 27... Nf6
{[%clk 0:00:16]} 28. Qxh3 {[%clk 0:00:15.5]} 28... Nxd5 {[%clk 0:00:16.5]} 29.
cxd5 {[%clk 0:00:15.4]} 29... Qxd5 {[%clk 0:00:17.4]} 30. Rd1 {[%clk 0:00:10.8]}
30... Qe4 {[%clk 0:00:16.2]} 31. Qg2 {[%clk 0:00:06]} 31... Qe3+ {[%clk
0:00:10.1]} 32. Qf2 {[%clk 0:00:06.5]} 32... Qe7 {[%clk 0:00:11]} 33. h3 {[%clk
0:00:06.7]} 33... Re8 {[%clk 0:00:10.3]} 34. Kh2 {[%clk 0:00:06.9]} 34... h6
{[%clk 0:00:10.8]} 35. Rhe1 {[%clk 0:00:07.5]} 35... Qf8 {[%clk 0:00:11.6]} 36.
Rxe8 {[%clk 0:00:07.9]} 36... Qxe8 {[%clk 0:00:12.5]} 37. Nf3 {[%clk 0:00:07.7]}
37... Qe7 {[%clk 0:00:12.6]} 38. Qd2 {[%clk 0:00:07.7]} 38... Kh7 {[%clk
0:00:12.3]} 39. Qd3+ {[%clk 0:00:07.9]} 39... g6 {[%clk 0:00:12.3]} 40. Re1
{[%clk 0:00:07.6]} 40... Qc7 {[%clk 0:00:11.9]} 41. Qc3 {[%clk 0:00:07.7]} 41...
Qd7 {[%clk 0:00:11.9]} 42. Ne5 {[%clk 0:00:08.2]} 42... Qe6 {[%clk 0:00:11.7]}
43. Ng4 {[%clk 0:00:08.8]} 1-0

[Event "Early-Titled-Tuesday-Blitz-March-12-2024"]
[Site "Chess.com"]
[Date "2024.03.12"]
[Round "9"]
[White "ccccvhhhj"]
[Black "Yeritsyaan"]
[Result "0-1"]
[WhiteElo "2461"]
[BlackElo "2644"]
[TimeControl "180+1"]
[EndTime "9:43:01 PDT"]
[Termination "Yeritsyaan won by checkmate"]

1. e4 {[%clk 0:03:00.9]} 1... g6 {[%clk 0:02:59.5]} 2. d4 {[%clk 0:03:00.9]}
2... Bg7 {[%clk 0:03:00.1]} 3. Nc3 {[%clk 0:03:01.6]} 3... c6 {[%clk 0:03:00.8]}
4. f3 {[%clk 0:03:02.3]} 4... d5 {[%clk 0:03:01.5]} 5. Be3 {[%clk 0:03:02.9]}
5... h5 {[%clk 0:03:00.5]} 6. Qd2 {[%clk 0:03:00.7]} 6... dxe4 {[%clk
0:02:58.5]} 7. fxe4 {[%clk 0:03:01.6]} 7... Nh6 {[%clk 0:02:54.4]} 8. h3 {[%clk
0:03:01.7]} 8... Nd7 {[%clk 0:02:50.3]} 9. O-O-O {[%clk 0:03:00.3]} 9... a5
{[%clk 0:02:50.2]} 10. Nf3 {[%clk 0:02:58.4]} 10... a4 {[%clk 0:02:50.2]} 11. a3
{[%clk 0:02:49.2]} 11... Qa5 {[%clk 0:02:37.9]} 12. d5 {[%clk 0:02:10.8]} 12...
c5 {[%clk 0:02:23.2]} 13. Bb5 {[%clk 0:01:58.8]} 13... Qb6 {[%clk 0:02:14.7]}
14. Rhe1 {[%clk 0:01:21.2]} 14... Kf8 {[%clk 0:02:11.5]} 15. Bxd7 {[%clk
0:01:15.3]} 15... Bxd7 {[%clk 0:02:10.7]} 16. e5 {[%clk 0:01:15.9]} 16... Nf5
{[%clk 0:02:08.3]} 17. d6 {[%clk 0:00:56.3]} 17... e6 {[%clk 0:02:02.2]} 18. Bg5
{[%clk 0:00:55.9]} 18... Qc6 {[%clk 0:01:55.5]} 19. Ne4 {[%clk 0:00:50.2]} 19...
b5 {[%clk 0:01:48.1]} 20. Bf6 {[%clk 0:00:47.6]} 20... Bh6 {[%clk 0:01:28.5]}
21. Bg5 {[%clk 0:00:46.8]} 21... Bg7 {[%clk 0:01:18.9]} 22. Bf6 {[%clk
0:00:47.4]} 22... Bh6 {[%clk 0:01:12.4]} 23. Bg5 {[%clk 0:00:47.8]} 23... b4
{[%clk 0:01:12.2]} 24. Bxh6+ {[%clk 0:00:47.1]} 24... Rxh6 {[%clk 0:01:09.6]}
25. g4 {[%clk 0:00:40.8]} 25... bxa3 {[%clk 0:01:07.3]} 26. bxa3 {[%clk
0:00:40.6]} 26... hxg4 {[%clk 0:00:59.7]} 27. hxg4 {[%clk 0:00:41.5]} 27... Rh3
{[%clk 0:00:53.5]} 28. gxf5 {[%clk 0:00:29]} 28... exf5 {[%clk 0:00:47.8]} 29.
Neg5 {[%clk 0:00:27.6]} 29... Rxf3 {[%clk 0:00:30.4]} 30. Nxf3 {[%clk
0:00:28.5]} 30... Qxf3 {[%clk 0:00:30.9]} 31. Qe3 {[%clk 0:00:20.3]} 31... Qxe3+
{[%clk 0:00:24.9]} 32. Rxe3 {[%clk 0:00:21.2]} 32... Kg7 {[%clk 0:00:17.5]} 33.
Rc3 {[%clk 0:00:21.1]} 33... Rc8 {[%clk 0:00:12.5]} 34. Rd5 {[%clk 0:00:21.5]}
34... c4 {[%clk 0:00:12.5]} 35. Rd4 {[%clk 0:00:19.3]} 35... Be6 {[%clk
0:00:12.3]} 36. Kd2 {[%clk 0:00:13.7]} 36... g5 {[%clk 0:00:12.5]} 37. Ke2
{[%clk 0:00:13.3]} 37... f4 {[%clk 0:00:12.1]} 38. Kf2 {[%clk 0:00:13.1]} 38...
Kg6 {[%clk 0:00:12.7]} 39. d7 {[%clk 0:00:13]} 39... Rd8 {[%clk 0:00:12.7]} 40.
Rd6 {[%clk 0:00:13.6]} 40... Kf5 {[%clk 0:00:11.8]} 41. Rh3 {[%clk 0:00:11.3]}
41... Kxe5 {[%clk 0:00:11.1]} 42. Rxe6+ {[%clk 0:00:08.5]} 42... Kxe6 {[%clk
0:00:10.7]} 43. Rh6+ {[%clk 0:00:09.1]} 43... f6 {[%clk 0:00:10.8]} 44. Rh7
{[%clk 0:00:08.6]} 44... Rxd7 {[%clk 0:00:11.2]} 45. Rh1 {[%clk 0:00:09.5]}
45... Kf5 {[%clk 0:00:11]} 46. Rb1 {[%clk 0:00:09.2]} 46... Rd2+ {[%clk
0:00:11.2]} 47. Kf3 {[%clk 0:00:09.2]} 47... g4# {[%clk 0:00:11.4]} 0-1

[Event "Early-Titled-Tuesday-Blitz-March-12-2024"]
[Site "Chess.com"]
[Date "2024.03.12"]
[Round "9"]
[White "theoneandonlydaaevik"]
[Black "atbenina64"]
[Result "0-1"]
[WhiteElo "2523"]
[BlackElo "2746"]
[TimeControl "180+1"]
[EndTime "9:43:02 PDT"]
[Termination "atbenina64 won by resignation"]

1. d4 {[%clk 0:02:55.9]} 1... Nf6 {[%clk 0:02:59.6]} 2. Nf3 {[%clk 0:02:53.5]}
2... d5 {[%clk 0:02:59.7]} 3. g3 {[%clk 0:02:53.3]} 3... Bf5 {[%clk 0:02:59.4]}
4. Bg2 {[%clk 0:02:53.4]} 4... c6 {[%clk 0:03:00]} 5. O-O {[%clk 0:02:52.1]}
5... h6 {[%clk 0:03:00.7]} 6. c4 {[%clk 0:02:52.5]} 6... e6 {[%clk 0:03:01.1]}
7. Nc3 {[%clk 0:02:43.3]} 7... Be7 {[%clk 0:02:53.8]} 8. Qb3 {[%clk 0:02:39.7]}
8... Qb6 {[%clk 0:02:52.7]} 9. c5 {[%clk 0:02:37.7]} 9... Qxb3 {[%clk
0:02:47.6]} 10. axb3 {[%clk 0:02:38.6]} 10... Nbd7 {[%clk 0:02:35.1]} 11. b4
{[%clk 0:02:38]} 11... a6 {[%clk 0:02:32.6]} 12. b5 {[%clk 0:02:33.9]} 12...
cxb5 {[%clk 0:02:32.1]} 13. Nxb5 {[%clk 0:02:27.4]} 13... O-O {[%clk 0:02:31.6]}
14. Nc3 {[%clk 0:02:20.5]} 14... b6 {[%clk 0:02:18.7]} 15. b4 {[%clk 0:02:17.3]}
15... a5 {[%clk 0:02:10.3]} 16. c6 {[%clk 0:01:57.3]} 16... Bxb4 {[%clk
0:01:54.5]} 17. Na2 {[%clk 0:01:56.8]} 17... Bd6 {[%clk 0:01:16.2]} 18. cxd7
{[%clk 0:01:54.4]} 18... Nxd7 {[%clk 0:01:17.1]} 19. Nc3 {[%clk 0:01:50.5]}
19... Bb4 {[%clk 0:01:16.1]} 20. Nb5 {[%clk 0:01:46.7]} 20... Rfc8 {[%clk
0:01:14.6]} 21. Ba3 {[%clk 0:01:39.8]} 21... Bxa3 {[%clk 0:01:15]} 22. Nxa3
{[%clk 0:01:40.4]} 22... Rab8 {[%clk 0:01:08.6]} 23. Nb5 {[%clk 0:01:27]} 23...
Rc2 {[%clk 0:01:06.3]} 24. Rfe1 {[%clk 0:01:04.9]} 24... Rb2 {[%clk 0:01:00.9]}
25. Nd6 {[%clk 0:01:04.8]} 25... Bc2 {[%clk 0:00:58.1]} 26. Ne5 {[%clk
0:01:01.6]} 26... Nxe5 {[%clk 0:00:44]} 27. dxe5 {[%clk 0:01:02.5]} 27... a4
{[%clk 0:00:44.9]} 28. e3 {[%clk 0:00:48.4]} 28... b5 {[%clk 0:00:40.1]} 29. Re2
{[%clk 0:00:44.2]} 29... b4 {[%clk 0:00:31]} 30. e4 {[%clk 0:00:41.8]} 30... a3
{[%clk 0:00:20.8]} 31. exd5 {[%clk 0:00:17.9]} 31... a2 {[%clk 0:00:20.6]} 32.
Bf1 {[%clk 0:00:16.3]} 32... b3 {[%clk 0:00:20.1]} 33. dxe6 {[%clk 0:00:09.9]}
33... fxe6 {[%clk 0:00:21]} 34. Ree1 {[%clk 0:00:06.9]} 34... Rb1 {[%clk
0:00:20]} 35. Nc4 {[%clk 0:00:05.4]} 35... Rxe1 {[%clk 0:00:16.9]} 36. Rxe1
{[%clk 0:00:06.1]} 36... b2 {[%clk 0:00:15.6]} 37. Nxb2 {[%clk 0:00:05.7]} 37...
Rxb2 {[%clk 0:00:16.5]} 38. Ra1 {[%clk 0:00:06.4]} 38... Rb1 {[%clk 0:00:12.8]}
39. Rxa2 {[%clk 0:00:04.5]} 39... Bd3 {[%clk 0:00:13.3]} 0-1

[Event "Early-Titled-Tuesday-Blitz-March-12-2024"]
[Site "Chess.com"]
[Date "2024.03.12"]
[Round "9"]
[White "sergoy"]
[Black "wonderfultime"]
[Result "0-1"]
[WhiteElo "3023"]
[BlackElo "3078"]
[TimeControl "180+1"]
[EndTime "9:43:05 PDT"]
[Termination "wonderfultime won on time"]

1. d4 {[%clk 0:02:59.2]} 1... d5 {[%clk 0:02:59.8]} 2. c4 {[%clk 0:02:59.7]}
2... c6 {[%clk 0:02:59.8]} 3. Nf3 {[%clk 0:03:00.4]} 3... Nf6 {[%clk 0:02:59.9]}
4. Nc3 {[%clk 0:03:01.1]} 4... a6 {[%clk 0:02:59.9]} 5. e3 {[%clk 0:02:59.3]}
5... Bf5 {[%clk 0:02:59.2]} 6. Ne5 {[%clk 0:02:58.8]} 6... h6 {[%clk 0:02:52.9]}
7. Qb3 {[%clk 0:02:56.2]} 7... Ra7 {[%clk 0:02:51.8]} 8. cxd5 {[%clk 0:02:56.7]}
8... cxd5 {[%clk 0:02:50.8]} 9. Bd2 {[%clk 0:02:57.3]} 9... e6 {[%clk
0:02:45.5]} 10. Rc1 {[%clk 0:02:56.9]} 10... Nbd7 {[%clk 0:02:33.8]} 11. Nxd7
{[%clk 0:02:42.5]} 11... Nxd7 {[%clk 0:02:30]} 12. Na4 {[%clk 0:02:35]} 12...
Be7 {[%clk 0:02:00.3]} 13. Be2 {[%clk 0:02:29.5]} 13... O-O {[%clk 0:02:00.1]}
14. O-O {[%clk 0:02:29.4]} 14... b5 {[%clk 0:01:57.1]} 15. Nc5 {[%clk
0:02:29.6]} 15... Nb6 {[%clk 0:01:57.7]} 16. a4 {[%clk 0:02:20.2]} 16... Nxa4
{[%clk 0:01:51.6]} 17. Nxa4 {[%clk 0:02:20]} 17... bxa4 {[%clk 0:01:52.5]} 18.
Qxa4 {[%clk 0:02:20.6]} 18... Qb8 {[%clk 0:01:40.8]} 19. b3 {[%clk 0:01:59.1]}
19... Rb7 {[%clk 0:01:28.4]} 20. Bxa6 {[%clk 0:01:25]} 20... Rxb3 {[%clk
0:01:27.2]} 21. Qd7 {[%clk 0:01:25.1]} 21... Bd6 {[%clk 0:01:12.3]} 22. h3
{[%clk 0:01:19.8]} 22... Rd8 {[%clk 0:01:08.2]} 23. Qa4 {[%clk 0:01:00.3]} 23...
Ra3 {[%clk 0:00:47.2]} 24. Qc6 {[%clk 0:00:59.2]} 24... Bf8 {[%clk 0:00:47.5]}
25. Be2 {[%clk 0:00:39]} 25... Ra2 {[%clk 0:00:45.5]} 26. Qc3 {[%clk 0:00:37.2]}
26... Qb2 {[%clk 0:00:44.5]} 27. Qc7 {[%clk 0:00:26.2]} 27... Rda8 {[%clk
0:00:25.6]} 28. Rfd1 {[%clk 0:00:24.2]} 28... Bg6 {[%clk 0:00:18.1]} 29. Bf3
{[%clk 0:00:21.7]} 29... Qb3 {[%clk 0:00:17.8]} 30. Be1 {[%clk 0:00:15.9]} 30...
R2a7 {[%clk 0:00:15.4]} 31. Qc6 {[%clk 0:00:14.5]} 31... Ra6 {[%clk 0:00:15]}
32. Qc7 {[%clk 0:00:14.7]} 32... Bd6 {[%clk 0:00:14.2]} 33. Qd7 {[%clk
0:00:13.7]} 33... Qb6 {[%clk 0:00:11.2]} 34. Rc8+ {[%clk 0:00:13]} 34... Rxc8
{[%clk 0:00:11.1]} 35. Qxc8+ {[%clk 0:00:13.9]} 35... Kh7 {[%clk 0:00:12]} 36.
Rc1 {[%clk 0:00:14.1]} 36... Ra7 {[%clk 0:00:10.1]} 37. h4 {[%clk 0:00:13.9]}
37... Rc7 {[%clk 0:00:09.1]} 38. Rxc7 {[%clk 0:00:13.7]} 38... Bxc7 {[%clk
0:00:10]} 39. h5 {[%clk 0:00:05.4]} 39... Bf5 {[%clk 0:00:10.3]} 40. g4 {[%clk
0:00:05.5]} 40... Bd3 {[%clk 0:00:10.8]} 41. Kg2 {[%clk 0:00:06.1]} 41... Qd6
{[%clk 0:00:10.1]} 0-1

[Event "Early-Titled-Tuesday-Blitz-March-12-2024"]
[Site "Chess.com"]
[Date "2024.03.12"]
[Round "9"]
[White "FischerKasparow"]
[Black "Happy1712Drummer"]
[Result "1-0"]
[WhiteElo "2114"]
[BlackElo "2346"]
[TimeControl "180+1"]
[EndTime "9:43:05 PDT"]
[Termination "FischerKasparow won on time"]

1. e4 {[%clk 0:03:00.9]} 1... c5 {[%clk 0:02:55.8]} 2. Nf3 {[%clk 0:03:00.1]}
2... e6 {[%clk 0:02:55.8]} 3. d4 {[%clk 0:03:00]} 3... cxd4 {[%clk 0:02:56.7]}
4. Nxd4 {[%clk 0:03:00.3]} 4... Nf6 {[%clk 0:02:57.2]} 5. Nc3 {[%clk 0:02:57.8]}
5... Nc6 {[%clk 0:02:57.1]} 6. Ndb5 {[%clk 0:02:56.2]} 6... Bc5 {[%clk
0:02:57.3]} 7. Bf4 {[%clk 0:02:38.7]} 7... O-O {[%clk 0:02:57]} 8. Bd6 {[%clk
0:02:36.3]} 8... Bxd6 {[%clk 0:02:48.6]} 9. Nxd6 {[%clk 0:02:22.6]} 9... Ne8
{[%clk 0:02:37.9]} 10. Bc4 {[%clk 0:02:11.2]} 10... Qe7 {[%clk 0:02:27.8]} 11.
Ncb5 {[%clk 0:01:59.4]} 11... Nxd6 {[%clk 0:02:18.6]} 12. Nxd6 {[%clk
0:01:57.1]} 12... a6 {[%clk 0:01:56.4]} 13. O-O {[%clk 0:01:53.8]} 13... b5
{[%clk 0:01:49.9]} 14. Bb3 {[%clk 0:01:53.7]} 14... Na5 {[%clk 0:01:49]} 15. Qd4
{[%clk 0:01:37.9]} 15... Nb7 {[%clk 0:01:42.8]} 16. Rad1 {[%clk 0:01:35.1]}
16... Nxd6 {[%clk 0:01:36.8]} 17. Qxd6 {[%clk 0:01:36]} 17... Qxd6 {[%clk
0:01:37.4]} 18. Rxd6 {[%clk 0:01:36]} 18... Rd8 {[%clk 0:01:29.6]} 19. Rfd1
{[%clk 0:01:35.7]} 19... Kf8 {[%clk 0:01:29.3]} 20. a4 {[%clk 0:01:27.5]} 20...
Rb8 {[%clk 0:01:21.1]} 21. a5 {[%clk 0:01:04.1]} 21... Ke7 {[%clk 0:01:18.1]}
22. e5 {[%clk 0:00:58.5]} 22... Bb7 {[%clk 0:01:13.4]} 23. f4 {[%clk 0:00:57.3]}
23... Bc6 {[%clk 0:01:12.5]} 24. c3 {[%clk 0:00:42.3]} 24... Rdc8 {[%clk
0:01:09.7]} 25. R1d2 {[%clk 0:00:36.8]} 25... Rc7 {[%clk 0:01:08.6]} 26. Bd1
{[%clk 0:00:36.3]} 26... Bb7 {[%clk 0:00:48.1]} 27. Be2 {[%clk 0:00:23.9]} 27...
Bc8 {[%clk 0:00:45.6]} 28. Kf2 {[%clk 0:00:23.1]} 28... Ra8 {[%clk 0:00:27.9]}
29. Rb6 {[%clk 0:00:20.3]} 29... Rb7 {[%clk 0:00:17.3]} 30. Rxb7 {[%clk
0:00:15.8]} 30... Bxb7 {[%clk 0:00:18.2]} 31. Rd6 {[%clk 0:00:15.4]} 31... Bc6
{[%clk 0:00:16.2]} 32. Bf3 {[%clk 0:00:12.7]} 32... Rc8 {[%clk 0:00:16]} 33. Ke3
{[%clk 0:00:10.3]} 33... f6 {[%clk 0:00:12.7]} 34. Kd4 {[%clk 0:00:09.1]} 34...
Bxf3 {[%clk 0:00:07.5]} 35. gxf3 {[%clk 0:00:08.8]} 35... Rc4+ {[%clk
0:00:07.6]} 36. Ke3 {[%clk 0:00:08]} 36... Rc6 {[%clk 0:00:04.9]} 37. Rxc6
{[%clk 0:00:07.4]} 37... dxc6 {[%clk 0:00:05.3]} 38. Kd4 {[%clk 0:00:07.7]}
38... Kd7 {[%clk 0:00:05.5]} 39. Kc5 {[%clk 0:00:07.9]} 39... Kc7 {[%clk
0:00:06]} 40. b4 {[%clk 0:00:05.6]} 40... h6 {[%clk 0:00:03.6]} 41. h4 {[%clk
0:00:05]} 41... f5 {[%clk 0:00:03.1]} 42. h5 {[%clk 0:00:04.7]} 1-0